[Event "1000GM NY Winter IM-C 2024"]
[Site "New York"]
[Date "2024.01.16"]
[Round "9.8"]
[White "Mou, Iris"]
[Black "Martin Del Campo Cardenas, Roberto Abel"]
[Result "1-0"]
[ECO "B52"]
[WhiteElo "2128"]
[BlackElo "2205"]
[Annotator "RC"]
[PlyCount "109"]
[EventDate "2024.01.10"]
[EventType "swiss"]
[EventCountry "USA"]
[SourceTitle "playchess.com"]
[Source "ChessBase"]
[SourceQuality "1"]
[TimeControl "5400+30"]

1. e4 {[%emt 0:00:01]} c5 {[%emt 0:03:18]} 2. Nf3 {[%emt 0:00:11]} d6 {[%emt 0:00:06]} 3. Bb5+ {[%emt 0:00:07]} Bd7 {[%emt 0:00:06]} 4. Bxd7+ {[%emt 0:00:07]} Qxd7 {[%emt 0:00:06]} 5. O-O {[%emt 0:00:10]} Nc6 {[%emt 0:00:10]} 6. c3 {[%emt 0:00:15]} Nf6 {[%emt 0:05:48]} 7. d4 {[%emt 0:00:11]} cxd4 {[%emt 0:00:37]} 8. cxd4 {[%emt 0:00:09]} d5 {[%emt 0:00:04]} 9. e5 {[%emt 0:00:26]} Ne4 {[%emt 0:00:06]} 10. Re1 {[%emt 0:00:22]} e6 {[%emt 0:00:52]} 11. a3 {[%emt 0:00:09]} Be7 {[%emt 0:00:17]} 12. Qd3 {[%emt 0:00:08]} O-O {[%emt 0:00:58]} 13. Nbd2 {[%emt 0:00:07]} Nxd2 {[%emt 0:05:06]} 14. Bxd2 {[%emt 0:00:10]} Rac8 {[%emt 0:28:01]} 15. Re3 {[%emt 0:07:11]} Bd8 {[%emt 0:06:00]} 16. h4 {[%emt 0:02:31]} Ne7 {[%emt 0:05:19]} 17. h5 {[%emt 0:05:16]} Qa4 {[%emt 0:04:54]} 18. Bc3 {[%emt 0:03:29]} Nf5 {[%emt 0:04:57]} 19. Ree1 {[%emt 0:02:48]} Qa6 {[%emt 0:11:36]} 20. Qd2 {[%emt 0:06:15]} Ne7 {[%emt 0:06:33]} 21. g4 {[%emt 0:04:15]} Nc6 {[%emt 0:02:01]} 22. b4 {[%emt 0:02:45]} Qa4 {[%emt 0:01:10]} 23. Kg2 {[%emt 0:05:26]} a5 {[%emt 0:00:34]} 24. Qd3 {[%emt 0:04:57]} Na7 {[%emt 0:00:39]} 25. bxa5 {[%emt 0:05:22]} Qc4 {[%emt 0:01:28]} 26. Qxc4 {[%emt 0:00:39]} Rxc4 {[%emt 0:00:20]} 27. Bb4 {[%emt 0:04:03]} Re8 {[%emt 0:00:18]} 28. Rec1 {[%emt 0:00:48]} Nc6 {[%emt 0:02:50]} 29. Rxc4 {[%emt 0:07:35]} dxc4 {[%emt 0:00:04]} 30. Rc1 {[%emt 0:00:24]} Nxa5 {[%emt 0:02:23]} 31. Bxa5 {[%emt 0:00:19]} Bxa5 {[%emt 0:00:03]} 32. Rxc4 {[%emt 0:00:09]} h6 {[%emt 0:00:52]} 33. Ra4 {[%emt 0:02:58]} Ra8 {[%emt 0:00:42]} 34. Rc4 {[%emt 0:00:44]} Kf8 {[%emt 0:00:24]} 35. a4 {[%emt 0:01:03]} Ke7 {[%emt 0:00:09]} 36. Kg3 {[%emt 0:00:26]} Kd7 {[%emt 0:00:16]} 37. Kf4 {[%emt 0:03:07]} Ra6 {[%emt 0:00:08]} 38. Ke4 {[%emt 0:01:46]} Rb6 {[%emt 0:02:19]} 39. Rc5 {[%emt 0:06:58]} Bb4 {[%emt 0:00:23]} 40. Rb5 {[%emt 0:00:16]} Kc6 {[%emt 0:00:02]} 41. Rxb6+ {[%emt 0:05:57]} Kxb6 {[%emt 0:00:03]} 42. d5 {[%emt 0:00:08]} exd5+ {[%emt 0:00:22]} 43. Kxd5 {[%emt 0:00:05]} Ka5 {[%emt 0:00:11]} 44. Nd4 {[%emt 0:01:52]} Kxa4 {[%emt 0:00:06]} 45. f4 {[%emt 0:00:38]} b5 {[%emt 0:00:34]} 46. f5 {[%emt 0:03:13]} Be7 {[%emt 0:00:34]} 47. Kc6 {[%emt 0:04:26]} b4 {[%emt 0:00:39]} 48. Kd7 {[%emt 0:00:48]} Bc5 {[%emt 0:00:04]} 49. e6 {[%emt 0:00:16]} fxe6 {[%emt 0:01:00]} 50. fxe6 {[%emt 0:00:05]} Bxd4 {[%emt 0:00:13]} 51. e7 {[%emt 0:00:04]} b3 {[%emt 0:00:23]} 52. e8=Q {[%emt 0:00:07]} b2 {[%emt 0:00:13]} 53. Qe4 {[%emt 0:00:20]} Kb5 {[%emt 0:02:58]} 54. Qd5+ {[%emt 0:01:30]} Ka6 {[%emt 0:02:01]} 55. Qb3 {[%emt 0:00:09]} 1-0

[Event "1000GM NY Winter IM-C 2024"]
[Site "New York"]
[Date "2024.01.16"]
[Round "9.9"]
[White "Venkatesh, Narayan"]
[Black "Rohde, Michael"]
[Result "1/2-1/2"]
[ECO "E95"]
[WhiteElo "1965"]
[BlackElo "2333"]
[Annotator "TA"]
[PlyCount "56"]
[EventDate "2024.01.10"]
[EventType "swiss"]
[EventCountry "USA"]
[SourceTitle "playchess.com"]
[Source "ChessBase"]
[SourceQuality "1"]
[TimeControl "5400+30"]

{[%evp 17,56,5,4,0,0,0,0,0,12,0,10,0,27,-31,12,-14,-6,-20,-23,-25,-15,-37,-33,-26,-24,-31,-4,-8,-8,-12,0,0,0,0,19,5,8,8,0,6,47]} 1. d4 {[%emt 0:01:40]} Nf6 {[%emt 0:09:53]} 2. c4 {[%emt 0:00:09]} d6 {[%emt 0:00:10]} 3. Nc3 {[%emt 0:00:08]} Nbd7 {[%emt 0:00:04]} 4. e4 {[%emt 0:00:11]} e5 {[%emt 0:00:03]} 5. Nf3 {[%emt 0:00:06]} g6 {[%emt 0:00:05]} 6. Be2 {[%emt 0:00:09]} Bg7 {[%emt 0:00:05]} 7. O-O {[%emt 0:00:07]} O-O {[%emt 0:00:02]} 8. Re1 {[%emt 0:00:06]} c6 {[%emt 0:00:17]} 9. dxe5 {[%emt 0:09:05]} dxe5 {[%emt 0:00:21]} 10. h3 {[%emt 0:07:17] E95: King's Indian: Classical: 7...Nbd7 8 Re1.} Qe7 {[%emt 0:00:22]} 11. Be3 {[%emt 0:02:29]} Nc5 {[%emt 0:01:01]} 12. Qc2 {[%emt 0:03:55]} Nh5 {[%emt 0:01:04][%cal Bf6h5,Bh5f4,Bf4e6,Be6c7,Bc7a6,Ba6c5][%mdl 32]} 13. Bf1 {[%emt 0:12:06]} Nf4 {[%emt 0:10:20]} 14. Rad1 {[%emt 0:06:35]} a5 {[%emt 0:06:25]} (14... Nce6 $5) 15. Kh2 {[%emt 0:11:32]} ({Better is} 15. Bxc5 $11 Qxc5 16. Na4) 15... Re8 {[%emt 0:05:53] [#]} 16. Qd2 $146 {[%emt 0:05:39][%cal Of3e5]} ({Predecessor:} 16. g3 Nfe6 17. b3 Bd7 18. a3 Red8 19. b4 axb4 20. axb4 Na6 21. Bb6 Nac7 22. Nd5 cxd5 23. cxd5 {0-1 Kantorik,M (2320)-Skacelik,P (2206) CZE-chT2D 1112 2011 (6)}) 16... a4 {[%emt 0:02:02]} 17. Qd6 {[%emt 0:07:09]} Qxd6 {[%emt 0:01:01]} 18. Rxd6 {[%emt 0:00:08]} Nfe6 {[%emt 0:00:14]} 19. g3 {[%emt 0:02:34]} Bf8 {[%emt 0:02:55]} 20. Rd2 {[%emt 0:02:27]} f6 {[%emt 0:01:38]} 21. Red1 {[%emt 0:04:06]} Nc7 {[%emt 0:08:09]} 22. Ne1 {[%emt 0:05:41] The position is equal.} Be6 {[%emt 0:05:57]} 23. Nd3 {[%emt 0:01:42]} N7a6 {[%emt 0:00:54]} 24. Nxc5 {[%emt 0:00:47]} Nxc5 {[%emt 0:00:27]} 25. f3 {[%emt 0:01:27]} a3 {[%emt 0:04:55]} 26. b3 {[%emt 0:00:41]} Na6 {[%emt 0:03:14]} 27. Na4 {[%emt 0:02:16]} Bb4 {[%emt 0:00:33]} 28. Rd3 {[%emt 0:01:26]} Rab8 {[%emt 0:06:38] Weighted Error Value: White=0.09 (flawless) /Black=0.09 (flawless)} 1/2-1/2